Workbook

Sheet Sheet1
A1: 2021年公开招聘综合成绩表
A2: 报考 岗位 | B2: 考生号 | C2: 笔试成绩 | D2: 面试成绩 | E2: 试讲成绩 | F2: 综合成绩 | G2: 本岗位排名 | H2: 是否 入围
A3: 02 | B3: 202102001 | C3: 89.00 | D3: 86.80 | E3: 89.80 | F3: =C3*0.3+D3*0.3+E3*0.4 -> 88.66 | G3: 1 | H3: 是
A4: 02 | B4: 202102038 | C4: 85.00 | D4: 80.40 | E4: 81.80 | F4: =C4*0.3+D4*0.3+E4*0.4 -> 82.34 | G4: 2 | H4: 否
A5: 02 | B5: 202102010 | C5: 81.00 | D5: 84.20 | E5: 80.40 | F5: =C5*0.3+D5*0.3+E5*0.4 -> 81.72 | G5: 3 | H5: 否
A6: 03 | B6: 202103001 | C6: 92.00 | D6: 82.20 | E6: 92.00 | F6: =C6*0.3+D6*0.3+E6*0.4 -> 89.06 | G6: 1 | H6: 是
A7: 03 | B7: 202103008 | C7: 84.00 | D7: 81.10 | E7: 81.00 | F7: =C7*0.3+D7*0.3+E7*0.4 -> 81.93 | G7: 2 | H7: 否
A8: 03 | B8: 202103004 | C8: 78.00 | D8: 73.40 | E8: 71.60 | F8: =C8*0.3+D8*0.3+E8*0.4 -> 74.06 | G8: 3 | H8: 否
A9: 04 | B9: 202104007 | C9: 85.00 | D9: 84.80 | E9: 90.60 | F9: =C9*0.3+D9*0.3+E9*0.4 -> 87.18 | G9: 1 | H9: 是
A10: 04 | B10: 202104005 | C10: 60.00 | D10: 81.60 | E10: 81.40 | F10: =C10*0.3+D10*0.3+E10*0.4 -> 75.04 | G10: 2 | H10: 否
A11: 04 | B11: 202104001 | C11: 67.00 | D11: 78.40 | E11: 76.20 | F11: =C11*0.3+D11*0.3+E11*0.4 -> 74.10 | G11: 3 | H11: 否
A12: 05 | B12: 202105004 | C12: 71.00 | D12: 80.60 | E12: 86.80 | F12: =C12*0.3+D12*0.3+E12*0.4 -> 80.20 | G12: 1 | H12: 是
A13: 05 | B13: 202105002 | C13: 62.00 | D13: 78.60 | E13: 85.60 | F13: =C13*0.3+D13*0.3+E13*0.4 -> 76.42 | G13: 2 | H13: 否
A14: 05 | B14: 202105006 | C14: 64.00 | D14: 76.00 | E14: 75.60 | F14: =C14*0.3+D14*0.3+E14*0.4 -> 72.24 | G14: 3 | H14: 否
A15: 06 | B15: 202106006 | C15: 69.00 | D15: 80.60 | E15: 89.00 | F15: =C15*0.3+D15*0.3+E15*0.4 -> 80.48 | G15: 1 | H15: 是
A16: 06 | B16: 202106005 | C16: 65.00 | D16: 82.60 | E16: 81.40 | F16: =C16*0.3+D16*0.3+E16*0.4 -> 76.84 | G16: 2 | H16: 否
A17: 06 | B17: 202106001 | C17: 60.00 | D17: 79.20 | E17: 81.20 | F17: =C17*0.3+D17*0.3+E17*0.4 -> 74.24 | G17: 3 | H17: 否
A18: 07 | B18: 202107008 | C18: 80.00 | D18: 77.80 | E18: 84.20 | F18: =C18*0.3+D18*0.3+E18*0.4 -> 81.02 | G18: 1 | H18: 是
A19: 07 | B19: 202107003 | C19: 87.00 | D19: 80.00 | E19: 75.80 | F19: =C19*0.3+D19*0.3+E19*0.4 -> 80.42 | G19: 2 | H19: 否
A20: 07 | B20: 202107014 | C20: 73.00 | D20: 81.60 | E20: 84.00 | F20: =C20*0.3+D20*0.3+E20*0.4 -> 79.98 | G20: 3 | H20: 否
A21: 08 | B21: 202108001 | C21: 68.00 | D21: 80.80 | E21: 84.00 | F21: =C21*0.3+D21*0.3+E21*0.4 -> 78.24 | G21: 1 | H21: 是
A22: 08 | B22: 202108002 | C22: 64.00 | D22: 77.60 | E22: 85.60 | F22: 76.72 | G22: 2 | H22: 否
A23: 08 | B23: 202108004 | C23: 67.00 | D23: 0.00 | E23: 0.00 | F23: 20.10 | G23: 3 | H23: 否
A24: 09 | B24: 202109015 | C24: 64.00 | D24: 80.40 | E24: 88.20 | F24: =C24*0.3+D24*0.3+E24*0.4 -> 78.60 | G24: 1 | H24: 是
A25: 09 | B25: 202109002 | C25: 64.00 | D25: 84.40 | E25: 79.40 | F25: =C25*0.3+D25*0.3+E25*0.4 -> 76.28 | G25: 2 | H25: 否
A26: 09 | B26: 202109011 | C26: 67.00 | D26: 73.70 | E26: 78.20 | F26: =C26*0.3+D26*0.3+E26*0.4 -> 73.49 | G26: 3 | H26: 否
A27: 11 | B27: 202111004 | C27: 78.00 | D27: 85.80 | E27: 75.80 | F27: 79.46 | G27: 1 | H27: 是
A28: 11 | B28: 202111007 | C28: 71.00 | D28: 84.40 | E28: 81.40 | F28: 79.18 | G28: 2 | H28: 否
A29: 11 | B29: 202111009 | C29: 64.00 | D29: 83.00 | E29: 87.00 | F29: 78.90 | G29: 3 | H29: 否
A30: 12 | B30: 202112003 | C30: 64.00 | D30: 90.60 | E30: 86.60 | F30: 81.02 | G30: 1 | H30: 是
A31: 12 | B31: 202112004 | C31: 68.00 | D31: 80.40 | E31: 90.60 | F31: 80.76 | G31: 2 | H31: 否
A32: 12 | B32: 202112005 | C32: 62.00 | D32: 90.20 | E32: 83.80 | F32: 79.18 | G32: 3 | H32: 否
A33: 12 | B33: 202112007 | C33: 62.00 | D33: 87.20 | E33: 84.00 | F33: 78.36 | G33: 4 | H33: 否
A34: 12 | B34: 202112009 | C34: 62.00 | D34: 83.00 | E34: 78.60 | F34: 74.94 | G34: 5 | H34: 否
A35: 13 | B35: 202113001 | C35: 65.00 | D35: 90.60 | E35: 89.80 | F35: =C35*0.3+D35*0.3+E35*0.4 -> 82.60 | G35: 1 | H35: 是
A36: 13 | B36: 202113003 | C36: 72.00 | D36: 81.20 | E36: 83.80 | F36: =C36*0.3+D36*0.3+E36*0.4 -> 79.48 | G36: 2 | H36: 否
A37: 13 | B37: 202113002 | C37: 67.00 | D37: 78.20 | E37: 81.60 | F37: =C37*0.3+D37*0.3+E37*0.4 -> 76.20 | G37: 3 | H37: 否
A38: 14 | B38: 202114003 | C38: 75.00 | D38: 86.00 | E38: 90.60 | F38: 84.54 | G38: 1 | H38: 是
A39: 14 | B39: 202114012 | C39: 75.00 | D39: 85.40 | E39: 79.40 | F39: 79.88 | G39: 2 | H39: 否
A40: 14 | B40: 202114025 | C40: 73.00 | D40: 81.20 | E40: 79.60 | F40: 78.10 | G40: 3 | H40: 否
A41: 16 | B41: 202116003 | C41: 81.00 | D41: 89.40 | E41: 82.40 | F41: =C41*0.3+D41*0.3+E41*0.4 -> 84.08 | G41: 1 | H41: 是
A42: 16 | B42: 202116039 | C42: 77.00 | D42: 81.00 | E42: 89.40 | F42: =C42*0.3+D42*0.3+E42*0.4 -> 83.16 | G42: 2 | H42: 否
A43: 16 | B43: 202116001 | C43: 75.00 | D43: 84.80 | E43: 85.00 | F43: =C43*0.3+D43*0.3+E43*0.4 -> 81.94 | G43: 3 | H43: 否
A44: 17 | B44: 202117017 | C44: 75.00 | D44: 85.00 | E44: 88.20 | F44: =C44*0.4+D44*0.3+E44*0.3 -> 81.96 | G44: 1 | H44: 是
A45: 17 | B45: 202117028 | C45: 75.00 | D45: 85.20 | E45: 78.80 | F45: =C45*0.4+D45*0.3+E45*0.3 -> 79.20 | G45: 2 | H45: 否
A46: 17 | B46: 202117001 | C46: 75.00 | D46: 81.40 | E46: 74.60 | F46: =C46*0.4+D46*0.3+E46*0.3 -> 76.80 | G46: 3 | H46: 否
A47: 17 | B47: 202117025 | C47: 79.00 | D47: 0.00 | E47: 0.00 | F47: =C47*0.4+D47*0.3+E47*0.3 -> 31.60 | G47: 4 | H47: 否
A48: 18 | B48: 202118063 | C48: 84.00 | D48: 89.20 | E48: 89.00 | F48: =C48*0.4+D48*0.3+E48*0.3 -> 87.06 | G48: 1 | H48: 是
A49: 18 | B49: 202118094 | C49: 84.00 | D49: 83.20 | E49: 89.40 | F49: =C49*0.4+D49*0.3+E49*0.3 -> 85.38 | G49: 2 | H49: 是
A50: 18 | B50: 202118264 | C50: 83.00 | D50: 91.60 | E50: 80.20 | F50: =C50*0.4+D50*0.3+E50*0.3 -> 84.74 | G50: 3 | H50: 否
A51: 18 | B51: 202118215 | C51: 83.00 | D51: 82.60 | E51: 88.00 | F51: =C51*0.4+D51*0.3+E51*0.3 -> 84.38 | G51: 4 | H51: 否
A52: 18 | B52: 202118247 | C52: 86.00 | D52: 85.80 | E52: 80.80 | F52: =C52*0.4+D52*0.3+E52*0.3 -> 84.38 | G52: 4 | H52: 否
A53: 18 | B53: 202118213 | C53: 86.00 | D53: 88.00 | E53: 76.80 | F53: =C53*0.4+D53*0.3+E53*0.3 -> 83.84 | G53: 6 | H53: 否
A54: 18 | B54: 202118198 | C54: 88.00 | D54: 83.60 | E54: 75.80 | F54: =C54*0.4+D54*0.3+E54*0.3 -> 83.02 | G54: 7 | H54: 否
A55: 18 | B55: 202118186 | C55: 83.00 | D55: 0.00 | E55: 0.00 | F55: =C55*0.4+D55*0.3+E55*0.3 -> 33.20 | G55: 8 | H55: 否
A56: 备注：1.02-16岗按百分制折算综合成绩，其中笔试占综合成绩的30%，面试占综合成绩的30%，试讲成绩占综合成绩的40%；2.17、18岗按百分制折算综合成绩，其中笔试占综合成绩的40%，面试占综合成绩的30%，试讲占综合成绩的30%；3.成绩计算结果精确到小数点后两位数。
